bitfinex/quotes_ETHUSD_20260216
["timestamp","ask_amount","ask_price","bid_price","bid_amount"]
[1771270038902,0.45051288,1975.5,1974.8,0.45092302]
[1771270039251,2.1874949,1975.6,1974.9,1.7168099]
[1771270039440,2.63800778,1975.6,1974.9,0.45092302]
[1771270039941,0.45051288,1975.5,1974.9,0.45092302]
[1771270042350,1.26556646,1975.4,1974.9,0.45092302]
[1771270043252,1.26556646,1975.4,1974.7,0.001]
[1771270043253,0.45051288,1975.3,1974.7,0.001]
[1771270044339,1.26569461,1975.2,1974.7,0.001]
[1771270045171,1.71620749,1975.2,1974.7,0.001]
[1771270046845,1.26569461,1975.2,1974.7,0.001]
[1771270047368,5.51324367,1975.3,1974.7,0.001]
[1771270047369,1.26568057,1975.3,1974.7,0.45192302]
[1771270047936,1.26568057,1975.3,1974.8,0.001]
[1771270049870,1.26568057,1975.3,1974.8,0.45192302]
[1771270050383,0.928,1975.4,1974.8,0.45192302]
[1771270051678,2.19357024,1975.4,1974.9,1.26588688]
[1771270051858,2.19357024,1975.4,1974.9,0.45092302]
[1771270054376,2.19357024,1975.4,1974.9,1.71680908]
[1771270055087,0.0011,1975.5,1975.2,0.45092302]
[1771270055557,1.26661097,1975.5,1975.0,0.45092302]
[1771270055756,1.26661097,1975.5,1974.8,0.45192302]
[1771270055757,0.45051288,1975.4,1974.8,0.45192302]
[1771270055958,0.45051288,1975.4,1974.8,1.26694542]
[1771270056164,1.26563053,1975.3,1974.8,0.45192302]
[1771270056957,1.26563053,1975.3,1974.8,0.001]
[1771270056958,1.71614341,1975.3,1974.8,0.001]
[1771270057389,1.26558797,1975.4,1974.8,0.45192302]
[1771270057883,1.26558797,1975.4,1974.8,0.001]
[1771270058056,1.71610085,1975.4,1974.8,0.001]
[1771270058256,0.45051288,1975.3,1974.8,0.001]
[1771270060476,1.71618259,1975.3,1974.9,0.001]
[1771270060685,1.71728259,1975.3,1974.9,0.001]
[1771270062169,0.0011,1975.3,1974.9,0.001]
[1771270062486,0.0011,1975.3,1974.9,0.45192302]
[1771270064892,0.0011,1975.3,1974.9,0.001]
[1771270065069,0.49495724,1975.2,1974.9,0.001]
[1771270067796,0.49495724,1975.0,1974.5,0.001]
[1771270070870,1.26588688,1974.9,1974.5,0.001]
[1771270074675,1.26588688,1974.9,1974.6,0.001]
[1771270076390,2.19788688,1974.9,1974.6,0.001]
[1771270081724,7.85269259,1974.8,1974.3,0.001]
[1771270081927,0.45703154,1974.7,1974.3,0.001]
[1771270082890,1.2660792,1974.6,1974.3,0.001]
[1771270084491,1.72311074,1974.6,1974.3,0.001]
[1771270085417,1.2660792,1974.6,1974.3,0.001]
[1771270086320,1.2660792,1974.6,1974.4,0.001]
[1771270086896,2.2080792,1974.6,1974.1,0.48554786]
[1771270087097,2.2080792,1974.6,1974.1,0.48654786]
[1771270090739,2.2080792,1974.6,1974.1,0.001]
[1771270090740,0.45703154,1974.4,1974.1,0.001]
[1771270092202,0.45703154,1974.4,1973.7,0.48554786]
[1771270092499,0.45703154,1974.4,1973.6,1.26766901]
[1771270092723,0.45703154,1974.4,1973.6,1.75321687]
[1771270092926,9.11896417,1974.3,1973.7,0.48554786]
[1771270093137,1.72330312,1974.3,1973.7,0.48554786]
[1771270093344,2.66830312,1974.3,1973.7,0.48554786]
[1771270097313,0.45952554,1974.2,1973.6,0.4756821]
[1771270097539,0.45952554,1974.1,1973.6,0.001]
[1771270097839,5.06508635,1974.4,1973.6,0.001]
[1771270097840,1.26625283,1974.4,1973.8,0.4746821]
[1771270098012,2.21125283,1974.4,1973.8,0.4746821]
[1771270099110,0.945,1974.4,1974.0,0.4746821]
[1771270099612,2.21204696,1974.7,1974.1,0.4746821]
[1771270099804,0.0011,1974.5,1974.1,0.4746821]
[1771270101235,0.0011,1974.5,1974.3,0.4746821]
[1771270102624,1.26703849,1974.9,1974.3,0.4746821]
[1771270102946,1.26699317,1974.9,1974.3,0.4746821]
[1771270103313,0.0011,1974.9,1974.5,0.4746821]
[1771270104519,0.0011,1974.9,1974.3,1.74090814]
[1771270104727,0.0011,1974.9,1974.4,0.4746821]
[1771270105540,0.0011,1974.9,1974.4,1.74088739]
[1771270106140,0.0011,1974.9,1974.5,0.4746821]
[1771270109436,0.0011,1974.9,1974.4,0.4746821]
[1771270110748,0.0011,1974.9,1974.3,1.26621836]
[1771270110921,0.46062554,1974.9,1974.3,1.74090046]
[1771270111317,1.26595098,1974.8,1974.3,0.4746821]
[1771270113127,1.72547652,1974.8,1974.2,1.26628584]
[1771270113316,1.72547652,1974.8,1974.1,1.74104075]
[1771270114241,1.72547652,1974.8,1974.1,1.26735865]
[1771270114449,1.72657652,1974.8,1974.2,0.4746821]
[1771270114643,1.26705098,1974.8,1974.2,0.4746821]
[1771270115660,0.0011,1974.8,1974.2,0.4746821]
[1771270116035,0.0011,1974.8,1974.3,0.4746821]
[1771270116239,0.0011,1974.8,1974.5,0.4746821]
[1771270122470,0.0011,1974.8,1974.3,1.74092458]
[1771270122673,0.0011,1974.8,1974.3,1.26624248]
[1771270122848,0.46062554,1974.8,1974.1,1.74206496]
[1771270123163,0.46062554,1974.8,1974.2,0.4746821]
[1771270124766,1.26601509,1974.7,1974.2,1.74099356]
[1771270129047,1.26601509,1974.7,1974.3,0.001]
[1771270129248,1.26711509,1974.7,1974.3,0.001]
[1771270131694,1.26711509,1974.7,1974.3,0.48581705]
[1771270132794,0.0011,1974.7,1974.3,0.001]
[1771270133570,0.48180571,1974.7,1974.3,0.001]
[1771270133890,0.0011,1974.7,1974.3,0.001]
[1771270136468,0.0011,1974.7,1974.3,0.48581705]
[1771270138701,0.0011,1974.7,1974.3,1.75202987]
[1771270142606,0.0011,1974.7,1974.4,0.001]
[1771270143297,0.0011,1974.6,1974.4,0.001]
[1771270155935,0.0011,1974.6,1974.4,0.49160119]
[1771270156430,0.0011,1974.6,1974.5,0.001]
[1771270156934,0.0011,1974.7,1974.5,0.001]
[1771270159247,0.49520965,1974.7,1974.5,0.001]
[1771270161338,1.76128059,1974.7,1974.5,0.001]
[1771270163528,0.0011,1974.7,1974.5,0.001]
[1771270169349,0.0011,1974.7,1974.6,0.001]
[1771270193488,0.47200572,1974.9,1974.6,0.001]
[1771270193690,1.73795645,1974.9,1974.6,0.001]
[1771270195796,1.26595073,1974.9,1974.6,0.001]
[1771270195995,1.73700586,1974.9,1974.6,0.001]
[1771270197695,0.47105513,1974.8,1974.6,0.001]
[1771270197898,1.26595073,1974.9,1974.3,0.49754923]
[1771270197899,0.47105513,1974.6,1974.3,0.001]
[1771270198082,0.961,1974.6,1974.3,0.001]
[1771270198600,0.47105513,1974.5,1974.3,0.001]
[1771270198778,0.47105513,1974.5,1974.0,0.001]
[1771270198779,0.47105513,1974.2,1974.0,0.001]
[1771270199093,0.47105513,1974.0,1973.6,0.001]
[1771270199262,1.43305513,1974.0,1973.6,0.001]
[1771270199996,1.26652819,1973.9,1973.6,0.001]
[1771270200164,0.962,1974.0,1973.6,0.49754923]
[1771270200363,1.2662552,1974.4,1973.6,0.49754923]
[1771270200577,0.962,1974.7,1974.0,0.49654923]
[1771270200790,2.22801879,1974.7,1974.0,0.49654923]
[1771270201166,2.69907392,1974.7,1974.0,0.49654923]
[1771270201367,0.47105513,1974.6,1973.7,0.49654923]
[1771270203394,1.26614332,1974.5,1973.9,0.49654923]
[1771270205498,1.26614332,1974.5,1974.0,0.001]
[1771270206769,1.16614332,1974.5,1974.0,0.001]
[1771270207295,1.16614332,1974.5,1973.9,1.1959021]
[1771270207499,1.63719845,1974.5,1973.9,1.69245133]
[1771270207905,0.0011,1974.6,1974.2,7.39766459]
[1771270208075,0.0011,1974.6,1974.2,7.89421382]
[1771270208408,0.0011,1974.6,1974.0,0.49654923]
[1771270208409,0.47105513,1974.5,1974.0,0.49654923]
[1771270208606,0.47105513,1974.5,1973.9,1.26751968]
[1771270208989,0.47105513,1974.5,1973.9,1.76406891]
[1771270209474,1.26718754,1974.6,1974.0,0.49654923]
[1771270209674,1.73824267,1974.6,1974.0,0.49654923]
[1771270211703,0.47105513,1974.5,1973.9,0.001]
[1771270212487,0.47105513,1974.5,1973.9,0.49754923]
[1771270215208,1.26614485,1974.5,1974.0,0.46682758]
[1771270218629,0.0011,1974.9,1974.4,0.46682758]
[1771270218805,1.26686418,1975.1,1974.8,7.39766459]
[1771270218987,1.73609003,1975.1,1974.6,7.39766459]
[1771270219187,0.46922585,1975.0,1974.4,7.86449217]
[1771270219421,0.46922585,1975.0,1974.0,9.13195406]
[1771270219422,0.46922585,1974.9,1974.0,9.13195406]
[1771270219897,0.0011,1974.5,1974.0,9.13195406]
[1771270223217,0.0011,1974.5,1974.1,0.46682758]
[1771270224321,0.0011,1974.5,1974.2,1.26633573]
[1771270225203,0.0011,1974.5,1974.1,1.73317569]
[1771270226621,0.0011,1974.5,1974.1,1.26634811]
[1771270229522,0.0011,1974.5,1974.0,9.1319562]
[1771270231732,0.0011,1974.5,1974.1,0.001]
[1771270235142,0.0011,1974.5,1974.1,0.46782758]
[1771270237942,0.0011,1974.5,1974.1,1.73418082]
[1771270241656,0.47032585,1974.5,1974.1,0.001]
[1771270243514,0.46922585,1974.4,1974.1,0.001]
[1771270243720,0.46922585,1974.4,1974.0,0.001]
[1771270243721,0.46922585,1974.2,1974.0,0.001]
[1771270244043,0.46922585,1974.2,1973.9,0.001]
[1771270244641,0.46922585,1974.2,1974.0,0.001]
[1771270245949,1.74571651,1974.1,1974.0,0.001]
[1771270246148,1.74571651,1974.1,1973.9,0.001]
[1771270246314,0.47931664,1974.0,1973.9,0.001]
[1771270249458,1.74578067,1974.0,1973.9,0.001]
[1771270249641,0.46714232,1973.9,1973.7,0.001]
[1771270250132,0.46714232,1973.9,1973.5,0.001]
[1771270250770,0.46714232,1973.8,1973.5,0.001]
[1771270253126,0.46714232,1974.0,1973.5,0.001]
[1771270253458,5.53299844,1974.2,1973.6,0.48300488]
[1771270253647,1.73347805,1974.2,1973.6,0.48300488]
[1771270253850,1.26633573,1974.2,1973.6,0.48300488]
[1771270255150,0.962,1974.3,1973.9,0.48300488]
[1771270255935,2.22827182,1974.3,1973.9,0.48300488]
[1771270256277,2.22827435,1974.3,1973.8,1.7495365]
[1771270256836,0.46714232,1974.2,1973.7,0.001]
[1771270257080,0.46824232,1974.1,1973.7,0.001]
[1771270257266,1.26646403,1974.0,1973.7,0.001]
[1771270258736,1.73360635,1974.0,1973.7,0.001]
[1771270260757,0.46714232,1973.9,1973.7,0.001]
[1771270261367,1.26659235,1973.8,1973.7,0.001]
[1771270261532,1.73373467,1973.8,1973.7,0.001]
[1771270262250,1.73373467,1973.8,1973.5,0.001]
[1771270263742,1.26646403,1974.0,1973.5,7.88740828]
[1771270263944,2.23246403,1974.0,1973.5,7.88740828]
[1771270266490,2.23246403,1974.0,1973.5,0.001]
[1771270266491,2.69960635,1974.0,1973.5,0.001]
[1771270267844,2.69960635,1974.0,1973.5,1.26778398]
[1771270268170,2.69960635,1974.0,1973.5,0.001]
[1771270270172,2.69960635,1974.0,1973.6,0.001]
[1771270270483,0.0011,1973.9,1973.6,0.001]
[1771270271681,0.0011,1973.9,1973.6,0.48400488]
[1771270275301,0.0011,1973.9,1973.6,0.48383271]
[1771270275461,0.0011,1974.1,1973.7,7.88623611]
[1771270275961,0.0011,1974.1,1973.7,7.4034034]
[1771270276389,0.0011,1974.1,1973.6,1.75054641]
[1771270276687,0.0011,1974.1,1973.7,0.30583271]
[1771270277766,0.0011,1974.1,1973.6,1.75054641]
[1771270280897,0.0011,1974.1,1973.7,0.48283271]
[1771270282903,0.0011,1974.1,1973.7,1.74948786]
[1771270283099,0.0011,1974.1,1973.6,0.001]
[1771270283100,0.0011,1974.0,1973.6,1.26766933]
[1771270283609,0.0011,1974.0,1973.6,1.75050204]
[1771270283803,0.0011,1974.1,1973.8,7.88623611]
[1771270283989,0.0011,1974.1,1973.9,0.48283271]
[1771270284178,0.0011,1974.1,1973.8,7.88623611]
[1771270285503,0.0011,1974.1,1973.8,9.15278764]
[1771270286806,0.0011,1974.2,1973.8,9.15278764]
[1771270287013,0.0011,1974.3,1974.0,7.4034034]
[1771270287386,0.0011,1974.3,1974.0,8.6698643]
[1771270287718,0.0011,1974.5,1974.0,9.15269701]
[1771270288213,0.0011,1974.5,1974.1,0.48283271]
[1771270288594,0.0011,1974.5,1974.1,1.53583271]
[1771270289709,0.46561603,1974.5,1974.1,1.053]
[1771270290612,0.46561603,1974.5,1973.8,9.72298548]
[1771270291382,0.46561603,1974.5,1973.8,8.4564034]
[1771270291716,0.46561603,1974.5,1973.8,1.053]
[1771270292411,0.46451603,1974.3,1973.8,1.053]
[1771270293305,0.46451603,1974.3,1973.8,2.31959146]
[1771270295109,1.73178801,1974.5,1973.8,10.20582757]
[1771270295317,1.73178801,1974.5,1973.9,0.48283271]
[1771270295712,0.0011,1974.4,1974.0,7.4034034]
[1771270296709,0.0011,1974.7,1974.2,7.88623611]
[1771270296927,0.0011,1974.7,1974.4,7.4034034]
[1771270297729,0.0011,1974.7,1974.2,8.66970332]
[1771270300030,0.0011,1974.7,1974.2,9.15253603]
[1771270302686,0.0011,1974.7,1974.3,0.48283271]
[1771270303294,0.46561603,1974.7,1974.2,8.66970332]
[1771270303522,0.46561603,1974.7,1974.1,2.32035044]
[1771270303717,0.46561603,1974.7,1974.1,1.054]
[1771270303924,0.46561603,1974.7,1974.1,2.32039775]
[1771270304224,0.46561603,1974.7,1974.1,1.054]
[1771270305317,0.47515005,1974.5,1973.7,5.5645809]
[1771270305501,0.47515005,1974.5,1973.8,1.059]
[1771270307627,1.7413575,1974.4,1973.9,0.001]
[1771270308028,1.7424575,1974.4,1973.9,0.001]
[1771270310530,0.4532887,1974.3,1973.9,0.001]
[1771270312143,0.4543887,1974.4,1973.9,0.001]
[1771270313137,0.4543887,1974.4,1973.9,7.40153582]
[1771270313531,0.0011,1974.4,1973.9,7.88146658]
[1771270314041,1.26731019,1974.4,1973.9,7.88146658]
[1771270314925,1.72059889,1974.4,1973.9,7.40153582]
[1771270316048,1.72059889,1974.4,1973.9,8.66800253]
[1771270316049,0.4543887,1974.4,1973.9,8.66800253]
[1771270316931,0.0011,1974.4,1973.9,9.14793329]
[1771270320445,0.0011,1974.4,1974.0,0.001]
[1771270320618,0.4543887,1974.4,1974.0,0.001]
[1771270321022,0.4532887,1974.2,1974.0,0.001]
[1771270321324,0.0011,1974.4,1974.0,7.40153582]
[1771270322146,0.0011,1974.5,1974.2,7.40053582]
[1771270324061,0.0011,1974.5,1974.2,8.6668539]
[1771270325428,0.0011,1974.5,1974.2,7.40053582]
[1771270325724,0.0011,1974.5,1974.1,2.33137097]
[1771270330439,0.0011,1974.5,1974.2,7.40053582]
[1771270332259,0.0011,1974.5,1974.2,8.66785073]
[1771270332428,0.0011,1974.4,1974.2,8.66785073]
[1771270333359,0.0011,1974.4,1974.2,0.001]
[1771270334062,0.0011,1974.4,1974.2,1.26733179]
[1771270342176,0.0011,1974.4,1974.2,1.74133204]
[1771270342551,0.0011,1974.5,1974.2,1.74133204]
[1771270344387,0.0011,1974.5,1974.3,0.001]
[1771270345258,0.0011,1974.4,1974.3,0.001]
[1771270345459,0.0011,1974.5,1974.3,0.001]
[1771270345792,0.0011,1974.5,1974.3,0.47500025]
[1771270346091,0.0011,1974.7,1974.3,0.47500025]
[1771270346586,0.0011,1974.7,1974.4,1.082]
[1771270348488,0.0011,1974.7,1974.5,1.26614332]
[1771270348875,0.0011,1974.9,1974.5,1.26614332]
[1771270350471,0.45709072,1974.8,1974.4,1.082]
[1771270351203,0.45709072,1974.8,1974.3,1.084]
[1771270352901,0.45709072,1974.6,1974.3,1.084]
[1771270356106,0.45709072,1974.6,1974.3,0.001]
[1771270356820,0.0011,1974.5,1974.3,0.001]
[1771270358317,0.0011,1974.8,1974.4,7.40053582]
[1771270358499,0.0011,1975.0,1974.6,7.87453607]
[1771270358820,0.0011,1975.2,1974.6,7.87453607]
[1771270358821,0.0011,1975.2,1974.8,7.87453607]
[1771270359115,0.0011,1975.2,1974.9,1.084]
[1771270359424,0.0011,1975.2,1974.9,1.55800025]
[1771270360189,0.0011,1975.2,1975.0,1.26582278]
[1771270360418,0.45709072,1975.5,1975.0,1.26582278]
[1771270362432,1.26545112,1975.6,1975.0,1.26582278]
[1771270362635,1.72254184,1975.6,1975.0,1.26582278]
[1771270362990,6.93049812,1975.7,1975.1,0.47400025]
[1771270362991,1.26541445,1975.7,1975.1,0.47400025]
[1771270363219,0.45709072,1975.6,1975.0,1.26582278]
[1771270363397,0.45709072,1975.6,1974.9,2.34983631]
[1771270365522,0.47583883,1975.5,1974.9,2.34983631]
[1771270365731,0.47583883,1975.5,1974.9,2.83585736]
[1771270367046,0.47583883,1975.5,1974.9,1.084]
[1771270367722,0.47583883,1975.3,1974.9,1.084]
[1771270369434,0.47583883,1975.3,1974.9,2.34988325]
[1771270369739,0.0011,1975.4,1974.9,2.34988325]
[1771270370510,0.0011,1975.4,1974.9,2.8267103]
[1771270370832,0.0011,1975.4,1975.0,0.47682705]
[1771270371046,0.0011,1975.4,1974.9,9.74271834]
[1771270371206,0.0011,1975.4,1974.9,2.8267103]
[1771270372226,0.48749308,1975.4,1974.9,2.34988325]
[1771270375638,0.0011,1975.4,1974.9,2.8267103]
[1771270375834,0.0011,1975.4,1975.0,0.47682705]
[1771270377255,0.48749308,1975.4,1975.0,1.26577293]
[1771270377445,0.48749308,1975.4,1974.9,2.34983971]
[1771270379018,0.48749308,1975.4,1974.9,1.95383971]
[1771270379740,0.48639308,1975.3,1974.9,1.95383971]
[1771270380759,0.48639308,1975.3,1974.7,1.26600862]
[1771270381661,1.26668624,1975.4,1974.8,0.47682705]
[1771270381863,0.0011,1975.4,1975.0,0.001]
[1771270382072,0.0011,1975.3,1975.0,0.001]
[1771270382646,0.0011,1975.5,1975.1,7.86966214]
[1771270383166,0.0011,1975.5,1975.2,0.47682705]
[1771270383675,0.0011,1975.5,1975.3,1.26563053]
[1771270383841,0.48639308,1975.9,1975.3,8.65846562]
[1771270384039,5.06059625,1976.1,1975.4,0.47682705]
[1771270384040,1.7515137,1976.1,1975.4,0.47682705]
[1771270384238,0.48639308,1976.0,1975.4,1.089]
[1771270385174,0.48639308,1975.9,1975.4,1.089]
[1771270385673,0.48639308,1975.9,1975.2,1.26564274]
[1771270386079,1.75168856,1975.9,1975.2,1.26564274]
[1771270386295,0.48639308,1975.8,1975.2,1.74246979]
[1771270389767,0.48639308,1976.1,1975.4,0.47682705]
[1771270391162,0.48639308,1976.1,1975.2,1.74246979]
[1771270391567,0.48639308,1975.9,1975.2,1.26564274]
[1771270391770,0.48639308,1975.9,1975.2,1.74246979]
[1771270392479,1.7515544,1976.1,1975.4,0.47682705]
[1771270394099,5.06031502,1976.2,1975.3,7.39283509]
[1771270394100,0.47394626,1976.0,1975.3,7.39283509]
[1771270394395,0.47394626,1976.0,1975.2,1.26569461]
[1771270394599,0.47394626,1976.0,1975.2,1.74127687]
[1771270394800,0.47394626,1976.0,1975.3,0.001]
[1771270395095,0.47504626,1975.9,1975.3,0.001]
[1771270397908,0.0011,1975.9,1975.4,0.47558226]
[1771270398091,0.47504626,1975.9,1975.3,7.86941735]
[1771270399698,0.0011,1975.9,1975.4,1.74114872]
[1771270400920,0.47504626,1975.9,1975.4,1.74114872]
[1771270403507,0.47504626,1975.9,1975.4,1.26556646]
[1771270405024,0.47504626,1975.9,1975.3,5.06326587]
[1771270407223,1.26635184,1975.9,1975.3,5.06326587]
[1771270407424,0.47394626,1975.8,1975.3,0.001]
[1771270408138,1.26635184,1975.9,1975.3,0.47658226]
[1771270408139,0.0011,1975.9,1975.3,0.47658226]
[1771270408442,0.0011,1975.9,1975.4,8.96141735]
[1771270408725,0.0011,1975.8,1975.4,8.48583509]
[1771270409226,0.0011,1975.8,1975.4,1.093]
[1771270409427,0.0011,1975.8,1975.5,1.2655024]
[1771270410328,0.47504626,1975.8,1975.4,2.35856032]
[1771270415936,0.0011,1975.8,1975.4,2.35856032]
[1771270422153,0.47504626,1975.8,1975.5,0.001]
[1771270422514,0.0011,1975.7,1975.5,0.001]
[1771270422732,0.47394626,1975.5,1975.3,0.001]
[1771270423136,0.47394626,1975.4,1975.3,0.001]
[1771270424022,0.47394626,1975.4,1975.2,0.001]
[1771270427752,0.47288601,1975.6,1975.2,0.001]
[1771270429259,0.48679923,1975.4,1975.2,0.001]
[1771270431960,1.75242864,1975.4,1975.2,0.001]
[1771270435085,1.75242864,1975.4,1975.3,0.001]
[1771270435884,0.48679923,1975.3,1975.1,0.001]
[1771270437787,1.75245465,1975.3,1975.1,0.001]
[1771270439594,1.26561382,1975.4,1975.1,0.001]
[1771270441074,1.75241305,1975.4,1975.1,0.001]
[1771270442190,0.48679923,1975.3,1975.1,0.001]
[1771270443677,1.26569461,1975.2,1975.1,0.001]
[1771270446696,2.22361834,1975.4,1975.1,0.001]
[1771270446997,2.71041757,1975.4,1975.1,0.001]
[1771270447193,0.48679923,1975.3,1975.1,0.001]
[1771270447900,0.48789923,1975.3,1975.2,0.001]
[1771270449277,1.75352976,1975.3,1975.2,0.001]
[1771270450981,1.75352976,1975.3,1975.0,0.001]
[1771270452078,1.26673053,1975.3,1975.0,0.001]
[1771270453804,1.74203647,1975.3,1974.9,0.001]
[1771270454009,0.47530594,1975.2,1974.9,0.001]
[1771270454569,1.26575869,1975.1,1974.9,0.001]
[1771270458127,1.74104791,1975.2,1974.9,0.001]
[1771270461130,1.74104791,1975.2,1975.0,0.001]
[1771270461340,0.0011,1975.1,1975.0,0.001]
[1771270468038,0.0011,1975.4,1975.1,0.48265925]
[1771270468440,0.0011,1975.6,1975.2,0.48265925]
[1771270468738,0.0011,1975.8,1975.4,0.48265925]
[1771270468945,3.15305645,1976.2,1975.4,0.48265925]
[1771270469444,3.15305645,1976.2,1975.6,0.48265925]
[1771270471846,3.15305645,1976.2,1975.6,1.74806153]
[1771270473220,0.0011,1976.1,1975.6,1.74806153]
[1771270479944,0.0011,1976.1,1975.7,0.48265925]
[1771270480777,0.0011,1976.1,1975.6,1.26540228]
[1771270483774,0.47506468,1976.1,1975.6,1.26540228]
[1771270484178,1.74021829,1976.1,1975.6,1.26540228]
[1771270485475,1.74021829,1976.1,1975.7,0.001]
[1771270485676,0.0011,1976.0,1975.7,0.001]
[1771270492085,0.45315776,1976.0,1975.7,0.001]
[1771270492760,7.3876768,1975.9,1975.5,0.001]
[1771270492960,7.3876768,1975.9,1975.0,5.10681554]
[1771270492961,0.45205776,1975.7,1975.0,5.10681554]
[1771270493165,0.45205776,1975.7,1975.0,1.26681554]
[1771270493890,0.45205776,1975.7,1975.0,1.75482509]
[1771270494270,1.7174961,1975.6,1975.0,1.75482509]
[1771270498058,1.7174961,1975.6,1975.1,0.001]
[1771270500398,0.45205776,1975.5,1975.1,0.001]
[1771270502013,1.26543834,1975.6,1975.1,0.001]
[1771270502215,1.26543834,1975.6,1975.1,0.48900955]
[1771270502505,0.45315776,1975.9,1975.2,7.3876768]
[1771270502705,2.69641032,1975.9,1975.3,0.48800955]
[1771270504884,0.0011,1975.9,1975.5,0.48800955]
[1771270507119,0.0011,1975.9,1975.7,0.48800955]
[1771270507500,0.0011,1975.9,1975.5,1.75346105]
[1771270507737,0.0011,1975.9,1975.4,1.26553665]
[1771270508037,0.45315776,1975.9,1975.2,1.2656387]
[1771270508250,0.0011,1975.9,1975.3,0.48800955]
[1771270508404,0.45315776,1975.9,1975.3,0.48800955]
[1771270509010,0.45315776,1975.9,1975.2,1.75364825]
[1771270509529,0.45315776,1975.9,1975.3,0.48800955]
[1771270509530,1.71844691,1975.9,1975.3,0.48800955]
[1771270510040,1.71844691,1975.9,1975.4,0.001]
[1771270510220,0.0011,1975.8,1975.4,0.001]
[1771270510550,0.0011,1975.8,1975.4,0.48900955]
[1771270511818,0.0011,1975.8,1975.4,0.001]
[1771270513458,0.0011,1975.8,1975.4,1.75457586]
[1771270515350,0.0011,1975.8,1975.4,0.48900955]
[1771270517435,0.0011,1975.8,1975.4,1.75457403]
[1771270518929,0.0011,1975.8,1975.5,0.49591176]
[1771270519130,0.0011,1975.9,1975.5,0.49591176]
[1771270520141,0.0011,1975.9,1975.6,1.7613501]
[1771270523457,0.0011,1975.8,1975.6,1.7613501]
[1771270523658,0.0011,1975.9,1975.7,0.49591176]
[1771270523873,0.0011,1976.2,1975.7,0.49591176]
[1771270525299,0.0011,1976.2,1975.7,1.76122322]
[1771270526807,0.0011,1976.2,1975.7,2.84222322]
[1771270527183,0.0011,1976.2,1975.7,2.34631146]
[1771270527386,0.0011,1976.2,1975.9,1.26524621]
[1771270527809,0.0011,1976.2,1975.8,1.76117636]
[1771270531736,0.47465061,1976.9,1976.3,7.88358856]
[1771270531940,0.47465061,1976.9,1976.4,2.34892612]
[1771270532256,12.44504329,1977.5,1976.4,2.84483788]
[1771270532257,0.47465061,1977.1,1976.4,2.84483788]
[1771270532407,0.47465061,1977.1,1976.5,0.49591176]
[1771270532934,0.47465061,1977.1,1976.5,7.88358856]
[1771270533306,0.47465061,1977.3,1976.7,7.3876768]
[1771270533506,0.47465061,1977.3,1976.6,0.49591176]
[1771270533942,1.26432497,1977.4,1976.8,0.49591176]
[1771270534136,1.26432497,1977.4,1976.8,1.57991176]
[1771270534339,1.26415956,1977.6,1977.0,7.88358856]
[1771270534528,1.26415956,1977.6,1976.9,0.49591176]
[1771270534844,0.47465061,1977.5,1976.9,0.49591176]
[1771270535817,0.47465061,1977.7,1976.9,0.49591176]
[1771270536148,1.26415857,1977.6,1977.0,9.14813079]
[1771270536344,1.26407262,1977.8,1977.1,0.49591176]
[1771270536548,5.05763427,1977.9,1977.3,0.49591176]
[1771270536549,0.00168928,1977.9,1977.3,0.49591176]
[1771270536758,0.00168928,1977.9,1977.6,7.88358856]
[1771270536919,0.1328778,1978.3,1977.7,0.49591176]
[1771270536920,1.39661259,1978.3,1977.7,0.49591176]
[1771270537644,1.2636126,1978.5,1977.8,7.88358856]
[1771270537952,1.73836187,1978.3,1977.5,1.76013426]
[1771270538150,1.73836187,1978.3,1977.6,1.084]
[1771270538343,1.73836187,1978.3,1977.6,8.96758856]
[1771270538955,1.73836187,1978.3,1977.6,0.49591176]
[1771270539146,1.73836187,1978.3,1977.4,8.65193394]
[1771270539147,0.47465061,1978.2,1977.5,1.084]
[1771270539345,0.47465061,1978.2,1977.4,1.7601689]
[1771270539539,0.47465061,1978.2,1977.4,1.084]
[1771270539738,0.47465061,1978.2,1977.4,2.34827714]
[1771270540144,1.73848964,1978.1,1977.4,2.34827714]
[1771270540350,1.73848964,1978.1,1977.4,1.084]
[1771270540565,0.47465061,1978.0,1977.4,2.34828253]
[1771270541331,0.47465061,1978.0,1977.4,1.084]
[1771270541962,0.47465061,1978.0,1977.3,1.76021325]
[1771270542263,0.47465061,1977.8,1977.2,1.083]
[1771270544538,0.45630342,1977.6,1976.5,0.46992043]
[1771270544733,1.26409465,1977.7,1976.5,2.14473404]
[1771270544734,0.45630342,1977.3,1976.5,2.14473404]
[1771270545240,0.45630342,1977.5,1976.6,0.46992043]
[1771270545461,0.45630342,1977.5,1976.7,0.46992043]
[1771270546051,0.45630342,1977.5,1976.5,2.14473404]
[1771270546395,0.45630342,1977.5,1976.6,0.46992043]
[1771270546570,1.72058985,1977.4,1976.7,1.26473415]
[1771270547271,1.72058985,1977.4,1976.5,1.67485212]
[1771270547272,0.45630342,1977.3,1976.5,1.67485212]
[1771270547442,0.45630342,1977.3,1976.5,2.14477255]
[1771270547643,0.45630342,1977.3,1976.6,0.46992043]
[1771270548158,0.45630342,1977.3,1976.7,0.001]
[1771270548835,1.26441432,1977.2,1976.7,1.26573415]
[1771270549837,1.26441432,1977.2,1976.7,0.001]
[1771270550071,1.75451489,1977.2,1976.7,0.001]
[1771270552104,1.26441432,1977.2,1976.7,0.001]
[1771270552876,0.49010057,1977.3,1976.7,0.001]
[1771270555866,0.49010057,1977.7,1976.7,0.45351825]
[1771270556071,0.49010057,1977.6,1976.7,0.45351825]
[1771270556995,0.49010057,1977.6,1976.7,0.44871825]
[1771270559502,1.75419522,1977.7,1976.9,0.45251825]
[1771270559997,1.26409465,1977.7,1976.9,0.45251825]
[1771270560201,0.49010057,1977.6,1976.7,1.71721453]
[1771270560496,0.49010057,1977.6,1976.7,1.26473286]
[1771270560880,0.49010057,1977.6,1976.7,1.71725111]
[1771270561902,0.49010057,1977.4,1976.7,1.71725111]
[1771270562599,0.49010057,1977.4,1976.6,6.13708345]
[1771270562600,0.49010057,1977.4,1976.6,2.34279564]
[1771270562803,0.49010057,1977.4,1976.6,2.79531389]
[1771270562974,0.49010057,1977.4,1976.6,2.79531492]
[1771270563304,0.49010057,1977.4,1976.8,0.001]
[1771270563913,0.49010057,1977.2,1976.8,0.001]